[Event "34th MPL National U14G-ch 2022"]
[Site "Ahmedabad"]
[Date "2022.05.14"]
[Round "11.8"]
[White "Shreya G Hipparagi"]
[Black "Elakshi Srivastava"]
[Result "1-0"]
[ECO "C54"]
[WhiteElo "1548"]
[BlackElo "1256"]
[Annotator "NA RC COMBH"]
[PlyCount "113"]
[EventDate "2022.05.09"]
[EventType "swiss"]
[EventCountry "IND"]
[SourceTitle "playchess.com"]
[Source "ChessBase"]
[SourceQuality "1"]
[TimeControl "5400+30"]

1. e4 {[%emt 0:00:04]} e5 {[%emt 0:00:02]} 2. Nf3 {[%emt 0:00:21]} Nc6 {[%emt 0:00:05]} 3. Bc4 {[%emt 0:00:56]} Bc5 {[%emt 0:00:08]} 4. c3 {[%emt 0:00:09]} Nf6 {[%emt 0:00:05]} 5. d3 {[%emt 0:00:17]} d6 {[%emt 0:00:10]} 6. O-O {[%emt 0:00:37]} h6 {[%emt 0:00:03]} 7. Nbd2 {[%emt 0:01:08]} O-O {[%emt 0:00:33]} 8. h3 {[%emt 0:01:00]} Bb6 {[%emt 0:00:30]} 9. Re1 {[%emt 0:00:52]} Be6 {[%emt 0:00:26]} 10. Bb3 {[%emt 0:00:17]} Bxb3 {[%emt 0:00:43]} 11. Qxb3 {[%emt 0:00:47]} Re8 {[%emt 0:00:21]} 12. Nf1 {[%emt 0:00:48]} d5 {[%emt 0:00:35]} 13. Ng3 {[%emt 0:01:15]} a6 {[%emt 0:01:56]} 14. Be3 {[%emt 0:02:05]} d4 {[%emt 0:01:10]} 15. cxd4 {[%emt 0:01:21]} Nxd4 {[%emt 0:00:33]} 16. Bxd4 {[%emt 0:00:53]} Bxd4 {[%emt 0:00:23]} 17. Nxd4 {[%emt 0:05:47]} Qxd4 {[%emt 0:00:32]} 18. Rac1 {[%emt 0:02:11]} Qb6 {[%emt 0:07:33]} 19. Qxb6 {[%emt 0:01:35]} cxb6 {[%emt 0:00:02]} 20. Rc7 {[%emt 0:00:49]} Rab8 {[%emt 0:00:07]} 21. Kf1 {[%emt 0:00:22]} Kf8 {[%emt 0:00:34]} 22. Nf5 {[%emt 0:00:54]} Red8 {[%emt 0:00:54]} 23. Ke2 {[%emt 0:00:27]} h5 {[%emt 0:02:34]} 24. Rec1 {[%emt 0:02:20]} g6 {[%emt 0:00:25]} 25. Ne3 {[%emt 0:00:51]} Ne8 {[%emt 0:00:52]} 26. R7c3 {[%emt 0:01:26]} Nd6 {[%emt 0:04:50]} 27. a4 {[%emt 0:00:21]} b5 {[%emt 0:00:58]} 28. a5 {[%emt 0:00:52]} Rbc8 {[%emt 0:01:14]} 29. Rc5 {[%emt 0:00:55]} Kg7 {[%emt 0:02:24]} 30. R1c2 {[%emt 0:02:50]} Rxc5 {[%emt 0:00:53]} 31. Rxc5 {[%emt 0:00:08]} Kf6 {[%emt 0:00:21]} 32. Nd5+ {[%emt 0:01:51]} Ke6 {[%emt 0:00:42]} 33. f4 {[%emt 0:00:18]} Rc8 {[%emt 0:01:04]} 34. f5+ {[%emt 0:04:58]} gxf5 {[%emt 0:01:39]} 35. exf5+ {[%emt 0:00:13]} Nxf5 {[%emt 0:00:22]} 36. Rxc8 {[%emt 0:02:22]} Kxd5 {[%emt 0:00:02]} 37. Rc7 {[%emt 0:00:47]} Nd6 {[%emt 0:00:39]} 38. b4 {[%emt 0:01:43]} Kd4 {[%emt 0:05:29]} 39. Rd7 {[%emt 0:02:14]} Kd5 {[%emt 0:00:01]} 40. Kd2 {[%emt 0:01:04]} Ke6 {[%emt 0:04:19]} 41. Rd8 {[%emt 0:02:20]} h4 {[%emt 0:01:08]} 42. Kc3 {[%emt 0:00:36]} Nf5 {[%emt 0:00:53]} 43. Re8+ {[%emt 0:04:22]} Kd6 {[%emt 0:01:16]} 44. Rb8 {[%emt 0:00:31]} Kc7 {[%emt 0:01:17]} 45. Rf8 {[%emt 0:00:14]} Nd6 {[%emt 0:02:07]} 46. Rh8 {[%emt 0:00:11]} Nf5 {[%emt 0:00:14]} 47. Rh5 {[%emt 0:01:04]} Ne3 {[%emt 0:00:35]} 48. Rxh4 {[%emt 0:00:10]} Nxg2 {[%emt 0:00:17]} 49. Rh7 {[%emt 0:00:09]} Kc6 {[%emt 0:00:34]} 50. Rxf7 {[%emt 0:00:15]} Nf4 {[%emt 0:00:21]} 51. h4 {[%emt 0:02:09]} Ne2+ {[%emt 0:01:03]} 52. Kd2 {[%emt 0:00:25]} Ng3 {[%emt 0:00:05]} 53. Ke3 {[%emt 0:00:29]} Kd5 {[%emt 0:00:30]} 54. Kf3 Nh5 {[%emt 0:00:30]} 55. Rxb7 {[%emt 0:01:00]} Kd4 {[%emt 0:00:30]} 56. Rd7+ {[%emt 0:00:30]} Kc3 {[%emt 0:00:30]} 57. Rd6 {[%emt 0:00:30]} 1-0